{"text_format":"3","workbook":"xlsx","n_sheets":2,"sheets":["UPUTE ZA RADNU KNJIGU","DNEVNIK OCJENA"],"not_rendered":{"defined_names":7},"read":"whole","date_system":"1900"}

{"sheet":"UPUTE ZA RADNU KNJIGU","index":0,"n_rows":10,"n_cols":2,"rows_kept":10}
[null,"UPUTE"]
[null,"Pomoću radnog lista DNEVNIK OCJENA izračunavajte ocjene tako da svaka zadaća vrijedi zadani broj bodova. "]
[null,"Upute: Obavezno spremite sigurnosne kopije ocjena."]
[null,"1. Unesite naziv obrazovne ustanove, podatke o razredu, imena i preuzima učenika ili studenata i ID-ove učenika ili studenata (neobavezno).   "]
[null,"2. Prilagodite tablicu ocjena svom sustavu ocjenjivanja."]
[null,"3. Unesite nazive zadaća, ispita i testova (npr. \"Ispit 1\") počevši od ćelije H8 zajedno s brojem bodova za svaku zadaću. "]
[null,"4. Unesite rezultate za svakog učenika za svaku zadaću ili test. Stupci \"Prosječno\", \"Rezultat\", \"Ltr ocjena\" i \"GPA\" izračunavaju se automatski, ali možete ih i nadjačati. Da biste nekome dodijelili dodatne bodove za neku zadaću, jednostavno dajte više bodova od maksimalnog broja bodova za tu zadaću."]
[null,"Pomoću naredbe „Područje ispisa” na izborniku Izgled stranice promijenite sadržaj za ispis."]
[null,"Rezultati za ocjene temelje se na standardnog postotnoj ljestvici u skladu s ukupnim brojem bodova dodijeljenim u redcima 8 i 9. Prilagodite svaku zadaću ili test željenim brojem bodova, a zatim prilagodite postotak odgovarajućim ocjenama. Da biste ručno unosili izmjene, prebrišite ćelije rezultata."]
[null,"U ćelije od H8 do X9 unesite sve zadaće, ispite i testove te broj bodova koliko se za svaki od njih može dodijeliti."]

{"sheet":"DNEVNIK OCJENA","index":1,"n_rows":24,"n_cols":24,"rows_kept":24,"merged":[[1,1,2,6],[3,1,3,6],[4,1,6,6],[7,4,7,6],[8,4,8,6],[10,4,10,6],[11,4,11,6],[19,1,19,6],[20,1,20,2],[20,3,20,4],[21,1,21,2],[21,3,21,4],[22,1,22,2],[22,3,22,4],[23,1,23,2],[23,3,23,4]]}
[null,"NAZIV OBRAZOVNE USTANOVE"]
[null,"Ime i prezime nastavnika"]
[{"$nulls":7},"Rezultat",{"$f":"I4*UkupnoBodova","v":118},120,126,134,140,{"v":145.6666666666666,"d":"146"},154,160,166,174,180,186,194]
[null,"Razred/projekt",{"$nulls":5},"%",{"v":0.59,"d":"59%"},{"v":0.6,"d":"60%"},{"v":0.63,"d":"63%"},{"v":0.67,"d":"67%"},{"v":0.7,"d":"70%"},{"v":0.728333333333333,"d":"73%"},{"v":0.77,"d":"77%"},{"v":0.8,"d":"80%"},{"v":0.83,"d":"83%"},{"v":0.87,"d":"87%"},{"v":0.9,"d":"90%"},{"v":0.93,"d":"93%"},{"v":0.97,"d":"97%"}]
[null,"Godina/polugodište/tromjesečje",{"$nulls":5},"Ltr ocjena","1","–2","2","+D","–3","3","+3","–4","4","+4","–5","5","+5"]
[{"$nulls":7},"GPA",0,0.67,1,1.33,1.67,2,2.33,2.67,3,3.33,3.67,4,4]
[]
[{"$nulls":4},"Naziv zadaće ili testa",null,null,"DZ1","DZ2","KV1"]
[{"$nulls":4},"Ukupni broj dostupnih bodova",null,null,50,50,100]
[]
[{"$nulls":4},"Ukupni broj zadaća i testova:",null,null,{"$f":"COUNTA(H8:X8)","v":3}]
[{"$nulls":4},"Maksimalni broj bodova:",null,null,{"$f":"SUM(H9:X9)","v":200}]
[]
[null,"Ime i prezime učenika","ID učenika","Prosječno","Rezultat","Ltr ocjena","GPA","Stupac6","Stupac7","Stupac8","Stupac9","Stupac10","Stupac11","Stupac12","Stupac13","Stupac14","Stupac15","Stupac16","Stupac17","Stupac18","Stupac19","Stupac20","Stupac21","Stupac22"]
[null,"Broj učenika 1",null,{"$f":"IFERROR(IF(COUNT(Ocjene[[#This Row],[Stupac6]:[Stupac22]])=0,\"\",SUM(Ocjene[[#This Row],[Stupac6]:[Stupac22]])/UkupnoBodova),\"\")","v":{"v":0.91,"d":"91.0%"}},{"$f":"IF(COUNT(Ocjene[[#This Row],[Stupac6]:[Stupac22]])=0,\"\",SUM(Ocjene[[#This Row],[Stupac6]:[Stupac22]]))","v":182},{"$f":"IFERROR(IF(Ocjene[[#This Row],[Prosječno]]<>\"\",HLOOKUP(Ocjene[[#This Row],[Prosječno]]*UkupnoBodova,TablicaOvjena,3),\"\"),0)","v":"–5"},{"$f":"IFERROR(IF(Ocjene[[#This Row],[Prosječno]]<>\"\",HLOOKUP(Ocjene[[#This Row],[Prosječno]]*UkupnoBodova,TablicaOvjena,4),\"\"),0)","v":3.67},45,45,92]
[null,"Obaveze za broj učenika",null,{"$f":"IFERROR(IF(COUNT(Ocjene[[#This Row],[Stupac6]:[Stupac22]])=0,\"\",SUM(Ocjene[[#This Row],[Stupac6]:[Stupac22]])/UkupnoBodova),\"\")","v":{"v":1,"d":"100.0%"}},{"$f":"IF(COUNT(Ocjene[[#This Row],[Stupac6]:[Stupac22]])=0,\"\",SUM(Ocjene[[#This Row],[Stupac6]:[Stupac22]]))","v":200},{"$f":"IFERROR(IF(Ocjene[[#This Row],[Prosječno]]<>\"\",HLOOKUP(Ocjene[[#This Row],[Prosječno]]*UkupnoBodova,TablicaOvjena,3),\"\"),0)","v":"+5"},{"$f":"IFERROR(IF(Ocjene[[#This Row],[Prosječno]]<>\"\",HLOOKUP(Ocjene[[#This Row],[Prosječno]]*UkupnoBodova,TablicaOvjena,4),\"\"),0)","v":{"v":4,"d":"4.00"}},50,50,100]
[{"$nulls":3},{"$f":"IFERROR(IF(COUNT(Ocjene[[#This Row],[Stupac6]:[Stupac22]])=0,\"\",SUM(Ocjene[[#This Row],[Stupac6]:[Stupac22]])/UkupnoBodova),\"\")","v":""},{"$f":"IF(COUNT(Ocjene[[#This Row],[Stupac6]:[Stupac22]])=0,\"\",SUM(Ocjene[[#This Row],[Stupac6]:[Stupac22]]))","v":""},{"$f":"IFERROR(IF(Ocjene[[#This Row],[Prosječno]]<>\"\",HLOOKUP(Ocjene[[#This Row],[Prosječno]]*UkupnoBodova,TablicaOvjena,3),\"\"),0)","v":""},{"$f":"IFERROR(IF(Ocjene[[#This Row],[Prosječno]]<>\"\",HLOOKUP(Ocjene[[#This Row],[Prosječno]]*UkupnoBodova,TablicaOvjena,4),\"\"),0)","v":""}]
[{"$nulls":3},{"$f":"IFERROR(IF(COUNT(Ocjene[[#This Row],[Stupac6]:[Stupac22]])=0,\"\",SUM(Ocjene[[#This Row],[Stupac6]:[Stupac22]])/UkupnoBodova),\"\")","v":""},{"$f":"IF(COUNT(Ocjene[[#This Row],[Stupac6]:[Stupac22]])=0,\"\",SUM(Ocjene[[#This Row],[Stupac6]:[Stupac22]]))","v":""},{"$f":"IFERROR(IF(Ocjene[[#This Row],[Prosječno]]<>\"\",HLOOKUP(Ocjene[[#This Row],[Prosječno]]*UkupnoBodova,TablicaOvjena,3),\"\"),0)","v":""},{"$f":"IFERROR(IF(Ocjene[[#This Row],[Prosječno]]<>\"\",HLOOKUP(Ocjene[[#This Row],[Prosječno]]*UkupnoBodova,TablicaOvjena,4),\"\"),0)","v":""}]
[{"$nulls":3},{"$f":"IFERROR(IF(COUNT(Ocjene[[#This Row],[Stupac6]:[Stupac22]])=0,\"\",SUM(Ocjene[[#This Row],[Stupac6]:[Stupac22]])/UkupnoBodova),\"\")","v":""},{"$f":"IF(COUNT(Ocjene[[#This Row],[Stupac6]:[Stupac22]])=0,\"\",SUM(Ocjene[[#This Row],[Stupac6]:[Stupac22]]))","v":""},{"$f":"IFERROR(IF(Ocjene[[#This Row],[Prosječno]]<>\"\",HLOOKUP(Ocjene[[#This Row],[Prosječno]]*UkupnoBodova,TablicaOvjena,3),\"\"),0)","v":""},{"$f":"IFERROR(IF(Ocjene[[#This Row],[Prosječno]]<>\"\",HLOOKUP(Ocjene[[#This Row],[Prosječno]]*UkupnoBodova,TablicaOvjena,4),\"\"),0)","v":""}]
[]
[null,"Sažetak razreda",null,"Prosječno",null,"Ltr ocjena","GPA","","","","","","","","","","",""]
[null," Prosječno",null,{"$f":"IFERROR(AVERAGE(Ocjene[[#All],[Prosječno]]),0)","v":{"v":0.9550000000000001,"d":"95.5%"}},null,{"$f":"IFERROR(HLOOKUP(D22*UkupnoBodova,TablicaOvjena,3),\"\")","v":"5"},{"$f":"IFERROR(AVERAGE(Ocjene[[#All],[GPA]]),0)","v":{"v":3.835,"d":"3.84"}},"","","","","","","","","","","","","","","","",""]
[null," Najviši rezultat",null,{"$f":"IFERROR(MAX(Ocjene[[#All],[Prosječno]]),0)","v":{"v":1,"d":"100.0%"}},null,{"$f":"IFERROR(HLOOKUP(D23*UkupnoBodova,TablicaOvjena,3),\"\")","v":"+5"},{"$f":"IFERROR(MAX(Ocjene[[#All],[GPA]]),0)","v":{"v":4,"d":"4.00"}},"","","","","","","","","","","","","","","","",""]
[null," Najniži rezultat",null,{"$f":"IFERROR(MIN(Ocjene[[#All],[Prosječno]]),0)","v":{"v":0.91,"d":"91.0%"}},null,{"$f":"IFERROR(HLOOKUP(D24*UkupnoBodova,TablicaOvjena,3),\"\")","v":"–5"},{"$f":"IFERROR(MIN(Ocjene[[#All],[GPA]]),0)","v":3.67},"","","","","","","","","","","","","","","","",""]